[Event "FIDE World Rapid Chess Championship 2021"]
[White "Howell, David W L"]
[Black "Kozak, Adam"]
[WhiteFideId "410608"]
[BlackFideId "753246"]
[WhiteElo "2624"]
[BlackElo "2552"]
[Result "1-0"]
[Round "12"]
[TimeControl "900+10"]
[Date "2021.12.28"]
[WhiteClock "0:01:17"]
[BlackClock "0:00:20"]

1. Nf3 {[%clk 0:15:00]}  Nf6 {[%clk 0:15:00]} 2. c4 {[%clk 0:15:17]}  e6 {[%clk 0:15:00]} 3. g3 {[%clk 0:15:17]}  d5 {[%clk 0:15:00]} 4. Bg2 {[%clk 0:15:17]}  dxc4 {[%clk 0:15:00]} 5. Qa4+ {[%clk 0:15:17]}  Bd7 {[%clk 0:15:00]} 6. Qxc4 {[%clk 0:15:17]}  c5 {[%clk 0:15:00]} 7. Ne5 {[%clk 0:15:17]}  Qc8 {[%clk 0:15:00]} 8. Nc3 {[%clk 0:15:05]}  Nc6 {[%clk 0:15:37]} 9. Nxd7 {[%clk 0:15:05]}  Qxd7 {[%clk 0:15:37]} 10. O-O {[%clk 0:15:05]}  Rc8 {[%clk 0:15:37]} 11. d3 {[%clk 0:15:05]}  Be7 {[%clk 0:15:37]} 12. Bg5 {[%clk 0:15:05]}  b6 {[%clk 0:15:37]} 13. Qa4 {[%clk 0:15:05]}  O-O {[%clk 0:13:29]} 14. Rfd1 {[%clk 0:15:17]}  Rfd8 {[%clk 0:12:04]} 15. Rac1 {[%clk 0:15:17]}  Nd5 {[%clk 0:12:04]} 16. Bd2 {[%clk 0:13:31]}  Bf6 {[%clk 0:09:51]} 17. Be1 {[%clk 0:13:31]}  g6 {[%clk 0:09:51]} 18. Kf1 {[%clk 0:13:07]}  Bg7 {[%clk 0:08:50]} 19. a3 {[%clk 0:13:07]}  Qe7 {[%clk 0:08:50]} 20. b4 {[%clk 0:11:34]}  Nxc3 {[%clk 0:08:03]} 21. Bxc3 {[%clk 0:07:37]}  Bxc3 {[%clk 0:08:03]} 22. Rxc3 {[%clk 0:07:37]}  Ne5 {[%clk 0:08:03]} 23. Rdc1 {[%clk 0:07:37]}  Rc7 {[%clk 0:01:55]} 24. bxc5 {[%clk 0:06:08]}  bxc5 {[%clk 0:01:55]} 25. Qf4 {[%clk 0:05:25]}  f6 {[%clk 0:00:36]} 26. d4 {[%clk 0:03:06]}  g5 {[%clk 0:00:14]} 27. Qe4 {[%clk 0:03:06]}  Rxd4 {[%clk 0:00:14]} 28. Qxd4 {[%clk 0:03:06]}  cxd4 {[%clk 0:00:14]} 29. Rxc7 {[%clk 0:03:06]}  Qxa3 {[%clk 0:00:14]} 30. Rb1 {[%clk 0:03:06]}  Nf7 {[%clk 0:00:14]} 31. Be4 {[%clk 0:01:25]}  f5 {[%clk 0:00:14]} 32. Bd3 {[%clk 0:01:25]}  Kg7 {[%clk 0:00:14]} 33. Rbb7 {[%clk 0:01:25]}  a5 {[%clk 0:00:14]} 34. Rxf7+ {[%clk 0:01:25]}  Kg6 {[%clk 0:00:14]} 35. g4 {[%clk 0:01:25]}  h6 {[%clk 0:00:20]} 36. Kg2 {[%clk 0:01:17]}  Qc1 {[%clk 0:00:20]} 37. Bxf5+ {[%clk 0:01:17]}  exf5 {[%clk 0:00:20]} 38. Rfc7 {[%clk 0:01:17]} 1-0


[Site "http://www.Chess.com"]

[Event "FIDE World Rapid Chess Championship 2021"]
[White "Dreev, Aleksey"]
[Black "Demidov, Mikhail"]
[WhiteFideId "4100107"]
[BlackFideId "4197143"]
[WhiteElo "2621"]
[BlackElo "2544"]
[Result "1/2-1/2"]
[Round "12"]
[TimeControl "900+10"]
[Date "2021.12.28"]
[WhiteClock "0:00:38"]
[BlackClock "0:00:33"]

1. d4 {[%clk 0:15:00]}  g6 {[%clk 0:15:18]} 2. e4 {[%clk 0:15:19]}  Bg7 {[%clk 0:15:18]} 3. Nf3 {[%clk 0:15:19]}  d6 {[%clk 0:15:18]} 4. Nc3 {[%clk 0:15:19]}  a6 {[%clk 0:15:18]} 5. Be3 {[%clk 0:15:19]}  b5 {[%clk 0:15:18]} 6. Bd3 {[%clk 0:15:19]}  Bb7 {[%clk 0:15:18]} 7. a4 {[%clk 0:14:51]}  b4 {[%clk 0:15:50]} 8. Ne2 {[%clk 0:14:51]}  Nf6 {[%clk 0:15:50]} 9. Ng3 {[%clk 0:14:51]}  O-O {[%clk 0:15:50]} 10. Qd2 {[%clk 0:14:51]}  a5 {[%clk 0:15:50]} 11. Bh6 {[%clk 0:14:51]}  d5 {[%clk 0:15:50]} 12. Bxg7 {[%clk 0:14:51]}  Kxg7 {[%clk 0:15:23]} 13. e5 {[%clk 0:13:08]}  Ne4 {[%clk 0:15:23]} 14. Qf4 {[%clk 0:13:08]}  f5 {[%clk 0:15:23]} 15. h4 {[%clk 0:13:08]}  e6 {[%clk 0:14:05]} 16. Ng5 {[%clk 0:12:08]}  Qe7 {[%clk 0:13:44]} 17. f3 {[%clk 0:11:39]}  Nxg5 {[%clk 0:09:58]} 18. hxg5 {[%clk 0:11:47]}  Nc6 {[%clk 0:09:58]} 19. Qh4 {[%clk 0:11:51]}  Rh8 {[%clk 0:07:12]} 20. Ne2 {[%clk 0:11:51]}  Nd8 {[%clk 0:07:16]} 21. g4 {[%clk 0:09:03]}  Nf7 {[%clk 0:07:16]} 22. f4 {[%clk 0:09:03]}  Bc8 {[%clk 0:06:39]} 23. Nc1 {[%clk 0:07:32]}  c5 {[%clk 0:05:04]} 24. dxc5 {[%clk 0:06:04]}  Qxc5 {[%clk 0:04:44]} 25. Kd2 {[%clk 0:06:04]}  fxg4 {[%clk 0:04:44]} 26. Nb3 {[%clk 0:06:04]}  Qb6 {[%clk 0:04:44]} 27. Qxg4 {[%clk 0:06:04]}  Bd7 {[%clk 0:03:18]} 28. Qg1 {[%clk 0:02:47]}  Qxg1 {[%clk 0:03:18]} 29. Rhxg1 {[%clk 0:02:47]}  Nd8 {[%clk 0:01:05]} 30. Nd4 {[%clk 0:02:57]}  Be8 {[%clk 0:01:05]} 31. Rh1 {[%clk 0:02:57]}  Ra7 {[%clk 0:01:05]} 32. Rh4 {[%clk 0:02:57]}  Rf8 {[%clk 0:00:00]} 33. Rah1 {[%clk 0:02:04]}  Kg8 {[%clk 0:00:00]} 34. b3 {[%clk 0:02:04]}  Re7 {[%clk 0:00:00]} 35. Ke3 {[%clk 0:02:04]}  Nb7 {[%clk 0:00:03]} 36. Nf3 {[%clk 0:01:29]}  Nc5 {[%clk 0:00:03]} 37. Nh2 {[%clk 0:01:29]}  h5 {[%clk 0:00:03]} 38. gxh6 {[%clk 0:01:29]}  Nxd3 {[%clk 0:00:03]} 39. cxd3 {[%clk 0:01:29]}  d4+ {[%clk 0:00:03]} 40. Kxd4 {[%clk 0:01:29]}  g5 {[%clk 0:00:03]} 41. Rg1 {[%clk 0:01:29]}  Rd7+ {[%clk 0:00:03]} 42. Ke3 {[%clk 0:01:29]}  Bg6 {[%clk 0:00:03]} 43. Rxg5 {[%clk 0:01:29]}  Kh7 {[%clk 0:00:03]} 44. Ng4 {[%clk 0:01:29]}  Rxd3+ {[%clk 0:00:03]} 45. Ke2 {[%clk 0:01:29]}  Rfd8 {[%clk 0:00:03]} 46. Nf6+ {[%clk 0:01:29]}  Kh8 {[%clk 0:00:03]} 47. Rxg6 {[%clk 0:00:48]}  Re3+ {[%clk 0:00:23]} 48. Kf2 {[%clk 0:00:48]}  Rd2+ {[%clk 0:00:23]} 49. Kxe3 {[%clk 0:00:48]}  Rd3+ {[%clk 0:00:23]} 50. Ke4 {[%clk 0:00:48]}  Rd4+ {[%clk 0:00:23]} 51. Kf3 {[%clk 0:00:48]}  Rd3+ {[%clk 0:00:23]} 52. Kf2 {[%clk 0:00:48]}  Rd2+ {[%clk 0:00:23]} 53. Kg3 {[%clk 0:00:48]}  Rd3+ {[%clk 0:00:23]} 54. Kh2 {[%clk 0:00:48]}  Rh3+ {[%clk 0:00:23]} 55. Kg1 {[%clk 0:00:48]}  Rg3+ {[%clk 0:00:23]} 56. Kf2 {[%clk 0:00:48]}  Rf3+ {[%clk 0:00:23]} 57. Ke2 {[%clk 0:00:48]}  Re3+ {[%clk 0:00:33]} 58. Kd2 {[%clk 0:00:38]}  Rd3+ {[%clk 0:00:33]} 59. Ke1 {[%clk 0:00:38]}  Re3+ {[%clk 0:00:33]} 60. Kf1 {[%clk 0:00:38]}  Rf3+ {[%clk 0:00:33]} 61. Kg1 {[%clk 0:00:38]}  Rg3+ {[%clk 0:00:33]} 62. Rxg3 {[%clk 0:00:38]} 1/2-1/2


[Site "http://www.Chess.com"]

[Event "FIDE World Rapid Chess Championship 2021"]
[White "Santos Latasa, Jaime"]
[Black "Fridman, Daniel"]
[WhiteFideId "2293307"]
[BlackFideId "11600454"]
[WhiteElo "2618"]
[BlackElo "2542"]
[Result "0-1"]
[Round "12"]
[TimeControl "900+10"]
[Date "2021.12.28"]
[WhiteClock "0:01:34"]
[BlackClock "0:02:34"]

1. Nf3 {[%clk 0:15:00]}  d5 {[%clk 0:15:19]} 2. g3 {[%clk 0:15:18]}  Nf6 {[%clk 0:15:19]} 3. Bg2 {[%clk 0:15:18]}  c5 {[%clk 0:15:19]} 4. O-O {[%clk 0:15:18]}  Nc6 {[%clk 0:15:19]} 5. d4 {[%clk 0:15:18]}  e6 {[%clk 0:15:19]} 6. b3 {[%clk 0:13:58]}  cxd4 {[%clk 0:16:23]} 7. Nxd4 {[%clk 0:13:58]}  Bc5 {[%clk 0:16:23]} 8. Bb2 {[%clk 0:13:58]}  O-O {[%clk 0:16:23]} 9. e3 {[%clk 0:13:58]}  Qe7 {[%clk 0:16:23]} 10. c4 {[%clk 0:13:58]}  dxc4 {[%clk 0:16:23]} 11. Nxc6 {[%clk 0:13:58]}  bxc6 {[%clk 0:16:23]} 12. bxc4 {[%clk 0:13:58]}  e5 {[%clk 0:16:23]} 13. Qc2 {[%clk 0:13:58]}  g6 {[%clk 0:14:59]} 14. Nd2 {[%clk 0:13:54]}  Rb8 {[%clk 0:14:59]} 15. Nb3 {[%clk 0:13:54]}  Ba3 {[%clk 0:13:15]} 16. Bxa3 {[%clk 0:13:27]}  Qxa3 {[%clk 0:13:15]} 17. Qc3 {[%clk 0:13:27]}  Qd6 {[%clk 0:13:15]} 18. Rfd1 {[%clk 0:13:27]}  Qc7 {[%clk 0:13:15]} 19. Qa5 {[%clk 0:13:27]}  Qe7 {[%clk 0:12:55]} 20. Qc5 {[%clk 0:12:12]}  Qxc5 {[%clk 0:12:55]} 21. Nxc5 {[%clk 0:12:12]}  Rb4 {[%clk 0:12:55]} 22. Nd3 {[%clk 0:12:12]}  Rxc4 {[%clk 0:12:55]} 23. Nxe5 {[%clk 0:12:12]}  Ra4 {[%clk 0:12:55]} 24. Nxc6 {[%clk 0:12:13]}  Be6 {[%clk 0:10:59]} 25. a3 {[%clk 0:12:13]}  Kg7 {[%clk 0:10:59]} 26. Rdb1 {[%clk 0:12:13]}  Rc8 {[%clk 0:10:59]} 27. Rb7 {[%clk 0:11:33]}  Bd7 {[%clk 0:10:08]} 28. Nxa7 {[%clk 0:04:44]}  Rxa3 {[%clk 0:07:38]} 29. Rbb1 {[%clk 0:04:44]}  Rxa1 {[%clk 0:07:38]} 30. Rxa1 {[%clk 0:04:44]}  Rc7 {[%clk 0:07:38]} 31. h3 {[%clk 0:04:44]}  h5 {[%clk 0:07:38]} 32. Bf1 {[%clk 0:04:56]}  Rb7 {[%clk 0:07:08]} 33. Bg2 {[%clk 0:04:56]}  Rc7 {[%clk 0:07:08]} 34. e4 {[%clk 0:04:56]}  h4 {[%clk 0:07:08]} 35. g4 {[%clk 0:03:45]}  Nh7 {[%clk 0:05:05]} 36. Ra5 {[%clk 0:03:45]}  Nf8 {[%clk 0:05:05]} 37. Bf1 {[%clk 0:03:45]}  Ne6 {[%clk 0:05:29]} 38. Ra3 {[%clk 0:01:16]}  Rb7 {[%clk 0:05:29]} 39. f3 {[%clk 0:01:16]}  Rb2 {[%clk 0:05:29]} 40. Rd3 {[%clk 0:01:16]}  Ba4 {[%clk 0:04:02]} 41. Nc8 {[%clk 0:00:40]}  Bb5 {[%clk 0:04:02]} 42. Rd1 {[%clk 0:00:40]}  Bxf1 {[%clk 0:02:19]} 43. Kxf1 {[%clk 0:00:22]}  Nf4 {[%clk 0:02:19]} 44. Rd7 {[%clk 0:00:22]}  Nxh3 {[%clk 0:02:19]} 45. e5 {[%clk 0:00:22]}  Rf2+ {[%clk 0:02:19]} 46. Ke1 {[%clk 0:00:22]}  Rxf3 {[%clk 0:02:19]} 47. Nd6 {[%clk 0:00:22]}  Ng5 {[%clk 0:02:19]} 48. Ne8+ {[%clk 0:00:22]}  Kf8 {[%clk 0:02:19]} 49. Nd6 {[%clk 0:00:22]}  Re3+ {[%clk 0:02:19]} 50. Kf2 {[%clk 0:00:22]}  Rxe5 {[%clk 0:02:19]} 51. Nc4 {[%clk 0:00:22]}  Re4 {[%clk 0:02:19]} 52. Ne3 {[%clk 0:00:22]}  Rf4+ {[%clk 0:02:19]} 53. Ke2 {[%clk 0:00:22]}  h3 {[%clk 0:02:19]} 54. Rd1 {[%clk 0:00:22]}  Ne4 {[%clk 0:02:19]} 55. Nf1 {[%clk 0:00:22]}  Rxg4 {[%clk 0:02:19]} 56. Kf3 {[%clk 0:00:22]}  f5 {[%clk 0:02:19]} 57. Nh2 {[%clk 0:01:34]}  Rg2 {[%clk 0:02:34]} 58. Nf1 {[%clk 0:01:34]}  Rg1 {[%clk 0:02:34]} 59. Ke2 {[%clk 0:01:34]}  h2 {[%clk 0:02:34]} 60. Nxh2 {[%clk 0:01:34]}  Nc3+ {[%clk 0:02:34]} 0-1


[Site "http://www.Chess.com"]

[Event "FIDE World Rapid Chess Championship 2021"]
[White "Chigaev, Maksim"]
[Black "Petrosyan, Manuel"]
[WhiteFideId "4108116"]
[BlackFideId "13300857"]
[WhiteElo "2605"]
[BlackElo "2514"]
[Result "1-0"]
[Round "12"]
[TimeControl "900+10"]
[Date "2021.12.28"]
[WhiteClock "0:00:31"]
[BlackClock "0:00:41"]

1. d4 {[%clk 0:15:00]}  Nf6 {[%clk 0:15:00]} 2. c4 {[%clk 0:15:00]}  e6 {[%clk 0:15:00]} 3. Nf3 {[%clk 0:15:00]}  d5 {[%clk 0:15:00]} 4. g3 {[%clk 0:15:00]}  Bb4+ {[%clk 0:15:00]} 5. Nbd2 {[%clk 0:15:00]}  O-O {[%clk 0:15:00]} 6. Bg2 {[%clk 0:15:00]}  b6 {[%clk 0:15:00]} 7. O-O {[%clk 0:15:00]}  Bb7 {[%clk 0:15:00]} 8. Ne5 {[%clk 0:15:00]}  Nc6 {[%clk 0:15:00]} 9. Nb1 {[%clk 0:15:00]}  Bd6 {[%clk 0:15:00]} 10. cxd5 {[%clk 0:15:00]}  exd5 {[%clk 0:11:38]} 11. Nxc6 {[%clk 0:16:02]}  Bxc6 {[%clk 0:11:38]} 12. Bg5 {[%clk 0:16:02]}  Bb7 {[%clk 0:11:38]} 13. Nc3 {[%clk 0:16:02]}  c6 {[%clk 0:11:38]} 14. e3 {[%clk 0:16:02]}  h6 {[%clk 0:11:38]} 15. Bxf6 {[%clk 0:16:02]}  Qxf6 {[%clk 0:11:38]} 16. Rc1 {[%clk 0:16:26]}  Qe7 {[%clk 0:08:30]} 17. a3 {[%clk 0:14:48]}  Rfd8 {[%clk 0:06:10]} 18. Re1 {[%clk 0:14:28]}  Qf8 {[%clk 0:06:10]} 19. Re2 {[%clk 0:14:28]}  h5 {[%clk 0:06:10]} 20. h4 {[%clk 0:14:28]}  g6 {[%clk 0:06:10]} 21. Rec2 {[%clk 0:14:28]}  Qe7 {[%clk 0:05:24]} 22. Rb1 {[%clk 0:13:34]}  Bc8 {[%clk 0:04:55]} 23. Ne2 {[%clk 0:11:30]}  Bf5 {[%clk 0:04:55]} 24. Rxc6 {[%clk 0:11:30]}  Bxb1 {[%clk 0:04:55]} 25. Qxb1 {[%clk 0:11:30]}  Kg7 {[%clk 0:02:48]} 26. Nc3 {[%clk 0:11:30]}  Qe8 {[%clk 0:02:48]} 27. Bxd5 {[%clk 0:11:30]}  Bxg3 {[%clk 0:02:48]} 28. Qa2 {[%clk 0:11:30]}  Bd6 {[%clk 0:01:50]} 29. Ne4 {[%clk 0:10:33]}  Be7 {[%clk 0:00:00]} 30. Rc7 {[%clk 0:10:33]}  Rac8 {[%clk 0:00:00]} 31. Rxa7 {[%clk 0:10:33]}  Rc1+ {[%clk 0:00:00]} 32. Kg2 {[%clk 0:10:33]}  Rdc8 {[%clk 0:00:00]} 33. Nc3 {[%clk 0:09:10]}  Kf8 {[%clk 0:00:00]} 34. Qb3 {[%clk 0:09:10]}  Qd8 {[%clk 0:00:00]} 35. Bxf7 {[%clk 0:05:45]}  Bxh4 {[%clk 0:00:23]} 36. Ne4 {[%clk 0:05:45]}  Bxf2 {[%clk 0:00:23]} 37. Bd5 {[%clk 0:05:45]}  R1c7 {[%clk 0:00:10]} 38. Rxc7 {[%clk 0:02:07]}  Qxc7 {[%clk 0:00:10]} 39. Nxf2 {[%clk 0:02:07]}  h4 {[%clk 0:00:10]} 40. e4 {[%clk 0:02:07]}  Kg7 {[%clk 0:00:10]} 41. Qe3 {[%clk 0:02:07]}  Qc1 {[%clk 0:00:10]} 42. Qh3 {[%clk 0:02:07]}  Qg5+ {[%clk 0:00:10]} 43. Qg4 {[%clk 0:02:07]}  Qxg4+ {[%clk 0:00:10]} 44. Nxg4 {[%clk 0:02:07]}  Rc2+ {[%clk 0:00:10]} 45. Kh3 {[%clk 0:02:07]}  g5 {[%clk 0:00:10]} 46. e5 {[%clk 0:02:07]}  Rd2 {[%clk 0:00:10]} 47. e6 {[%clk 0:02:07]}  Rd3+ {[%clk 0:00:10]} 48. Kg2 {[%clk 0:01:34]}  Kf8 {[%clk 0:00:30]} 49. Ne5 {[%clk 0:01:34]}  Rd2+ {[%clk 0:00:30]} 50. Kf3 {[%clk 0:01:34]}  g4+ {[%clk 0:00:30]} 51. Ke3 {[%clk 0:01:34]}  Rd1 {[%clk 0:00:30]} 52. Nxg4 {[%clk 0:01:34]}  Ke7 {[%clk 0:00:30]} 53. a4 {[%clk 0:01:34]}  h3 {[%clk 0:00:30]} 54. Nf2 {[%clk 0:01:34]}  Rg1 {[%clk 0:00:30]} 55. Bf3 {[%clk 0:01:34]}  h2 {[%clk 0:00:30]} 56. d5 {[%clk 0:01:34]}  Rb1 {[%clk 0:00:29]} 57. Kf4 {[%clk 0:00:22]}  Rf1 {[%clk 0:00:29]} 58. Kg3 {[%clk 0:00:22]}  Kd6 {[%clk 0:00:29]} 59. Bg2 {[%clk 0:00:22]}  Rb1 {[%clk 0:00:29]} 60. Ne4+ {[%clk 0:00:22]}  Ke7 {[%clk 0:00:29]} 61. Kxh2 {[%clk 0:00:22]}  Rxb2 {[%clk 0:00:29]} 62. Kg3 {[%clk 0:00:22]}  b5 {[%clk 0:00:29]} 63. a5 {[%clk 0:00:22]}  b4 {[%clk 0:00:29]} 64. Bh3 {[%clk 0:00:22]}  Rb3+ {[%clk 0:00:29]} 65. Kh4 {[%clk 0:00:22]}  Re3 {[%clk 0:00:41]} 66. d6+ {[%clk 0:00:31]}  Kf8 {[%clk 0:00:41]} 67. Bf5 {[%clk 0:00:31]} 1-0


[Site "http://www.Chess.com"]

[Event "FIDE World Rapid Chess Championship 2021"]
[White "Adly, Ahmed"]
[Black "Harsha, Bharathakoti"]
[WhiteFideId "10601619"]
[BlackFideId "5078776"]
[WhiteElo "2597"]
[BlackElo "2484"]
[Result "0-1"]
[Round "12"]
[TimeControl "900+10"]
[Date "2021.12.28"]
[WhiteClock "0:01:20"]
[BlackClock "0:00:00"]

1. d4 {[%clk 0:15:00]}  Nf6 {[%clk 0:15:00]} 2. Nf3 {[%clk 0:15:19]}  g6 {[%clk 0:15:00]} 3. Nc3 {[%clk 0:15:19]}  Bg7 {[%clk 0:15:00]} 4. e4 {[%clk 0:15:19]}  d6 {[%clk 0:15:00]} 5. Bg5 {[%clk 0:15:19]}  c6 {[%clk 0:15:00]} 6. Qd2 {[%clk 0:15:19]}  Nbd7 {[%clk 0:14:16]} 7. Bh6 {[%clk 0:15:45]}  Bxh6 {[%clk 0:14:16]} 8. Qxh6 {[%clk 0:15:45]}  Qa5 {[%clk 0:14:16]} 9. Bd3 {[%clk 0:15:45]}  Qh5 {[%clk 0:14:16]} 10. Qd2 {[%clk 0:15:45]}  O-O {[%clk 0:14:16]} 11. Ne2 {[%clk 0:15:45]}  Kg7 {[%clk 0:14:16]} 12. Nf4 {[%clk 0:15:09]}  Qh6 {[%clk 0:13:13]} 13. Ng5 {[%clk 0:15:09]}  Kg8 {[%clk 0:13:13]} 14. h4 {[%clk 0:15:09]}  e5 {[%clk 0:13:13]} 15. Ne2 {[%clk 0:15:09]}  Qg7 {[%clk 0:13:13]} 16. O-O-O {[%clk 0:13:11]}  h6 {[%clk 0:13:13]} 17. Nf3 {[%clk 0:13:11]}  d5 {[%clk 0:13:15]} 18. Nxe5 {[%clk 0:10:46]}  dxe4 {[%clk 0:13:15]} 19. Nxd7 {[%clk 0:10:46]}  Bxd7 {[%clk 0:13:15]} 20. Bc4 {[%clk 0:10:46]}  Bg4 {[%clk 0:11:42]} 21. f3 {[%clk 0:10:07]}  exf3 {[%clk 0:10:46]} 22. gxf3 {[%clk 0:10:07]}  Bxf3 {[%clk 0:10:46]} 23. Rhg1 {[%clk 0:10:07]}  Ne4 {[%clk 0:10:46]} 24. Qf4 {[%clk 0:07:31]}  Bxe2 {[%clk 0:09:41]} 25. Bxe2 {[%clk 0:07:31]}  Rae8 {[%clk 0:09:41]} 26. Bc4 {[%clk 0:07:31]}  Re7 {[%clk 0:09:41]} 27. Rde1 {[%clk 0:07:07]}  Rfe8 {[%clk 0:09:41]} 28. Ref1 {[%clk 0:07:07]}  Nf6 {[%clk 0:07:48]} 29. Qxf6 {[%clk 0:05:45]}  Re1+ {[%clk 0:06:30]} 30. Kd2 {[%clk 0:05:45]}  Qxf6 {[%clk 0:06:30]} 31. Rxf6 {[%clk 0:05:45]}  Rxg1 {[%clk 0:06:30]} 32. Rxf7 {[%clk 0:05:45]}  Kh8 {[%clk 0:06:30]} 33. Rxb7 {[%clk 0:05:45]}  Rg4 {[%clk 0:06:30]} 34. h5 {[%clk 0:05:45]}  gxh5 {[%clk 0:06:30]} 35. Rxa7 {[%clk 0:05:45]}  h4 {[%clk 0:06:15]} 36. Bd3 {[%clk 0:03:39]}  h3 {[%clk 0:06:15]} 37. Rh7+ {[%clk 0:03:39]}  Kg8 {[%clk 0:06:15]} 38. Rxh6 {[%clk 0:03:39]}  Rg2+ {[%clk 0:06:15]} 39. Kc3 {[%clk 0:03:39]}  h2 {[%clk 0:06:15]} 40. a4 {[%clk 0:02:51]}  Re1 {[%clk 0:04:58]} 41. Kb4 {[%clk 0:02:51]}  Rf2 {[%clk 0:04:36]} 42. a5 {[%clk 0:00:11]}  h1=Q {[%clk 0:04:36]} 43. Rxh1 {[%clk 0:00:11]}  Rxh1 {[%clk 0:04:36]} 44. a6 {[%clk 0:00:11]}  Kf7 {[%clk 0:02:06]} 45. Kc5 {[%clk 0:01:07]}  Ke7 {[%clk 0:02:06]} 46. Kb6 {[%clk 0:01:07]}  Kd6 {[%clk 0:02:06]} 47. a7 {[%clk 0:01:07]}  Rf8 {[%clk 0:02:06]} 48. Kb7 {[%clk 0:01:18]}  Ra1 {[%clk 0:00:00]} 49. Ba6 {[%clk 0:01:18]}  Ra2 {[%clk 0:00:00]} 50. b3 {[%clk 0:01:18]}  Rxc2 {[%clk 0:00:00]} 51. a8=Q {[%clk 0:01:18]}  Rxa8 {[%clk 0:00:00]} 52. Kxa8 {[%clk 0:01:18]}  Kc7 {[%clk 0:00:00]} 53. Ka7 {[%clk 0:01:18]}  Ra2 {[%clk 0:00:00]} 54. b4 {[%clk 0:01:18]}  Ra1 {[%clk 0:00:00]} 55. d5 {[%clk 0:01:20]}  cxd5 {[%clk 0:00:00]} 56. b5 {[%clk 0:01:20]}  Rb1 {[%clk 0:00:00]} 0-1


[Site "http://www.Chess.com"]

[Event "FIDE World Rapid Chess Championship 2021"]
[White "Timofeev, Artyom"]
[Black "Sanal, Vahap"]
[WhiteFideId "4140419"]
[BlackFideId "6300545"]
[WhiteElo "2591"]
[BlackElo "2509"]
[Result "0-1"]
[Round "12"]
[TimeControl "900+10"]
[Date "2021.12.28"]
[WhiteClock "0:00:19"]
[BlackClock "0:01:19"]

1. c4 {[%clk 0:15:17]}  Nf6 {[%clk 0:15:00]} 2. Nc3 {[%clk 0:15:17]}  g6 {[%clk 0:15:00]} 3. g3 {[%clk 0:15:17]}  Bg7 {[%clk 0:15:00]} 4. Bg2 {[%clk 0:15:17]}  O-O {[%clk 0:15:00]} 5. d3 {[%clk 0:15:17]}  e5 {[%clk 0:15:00]} 6. Nf3 {[%clk 0:15:17]}  d6 {[%clk 0:15:00]} 7. O-O {[%clk 0:15:17]}  c6 {[%clk 0:15:00]} 8. e4 {[%clk 0:15:19]}  Na6 {[%clk 0:15:31]} 9. h3 {[%clk 0:15:19]}  Nc5 {[%clk 0:15:31]} 10. Be3 {[%clk 0:15:19]}  Re8 {[%clk 0:15:31]} 11. b4 {[%clk 0:15:19]}  Ne6 {[%clk 0:15:31]} 12. Qb3 {[%clk 0:15:19]}  Nh5 {[%clk 0:15:31]} 13. Ne2 {[%clk 0:15:19]}  f5 {[%clk 0:14:59]} 14. c5 {[%clk 0:13:28]}  d5 {[%clk 0:14:59]} 15. Rad1 {[%clk 0:13:28]}  d4 {[%clk 0:14:02]} 16. Bc1 {[%clk 0:12:26]}  Kh8 {[%clk 0:14:02]} 17. Kh2 {[%clk 0:12:13]}  Bd7 {[%clk 0:12:09]} 18. Nd2 {[%clk 0:11:18]}  b5 {[%clk 0:10:12]} 19. cxb6 {[%clk 0:05:54]}  axb6 {[%clk 0:10:12]} 20. exf5 {[%clk 0:05:54]}  gxf5 {[%clk 0:10:12]} 21. Nc4 {[%clk 0:05:54]}  Qc7 {[%clk 0:08:46]} 22. a4 {[%clk 0:05:32]}  f4 {[%clk 0:08:46]} 23. Bf3 {[%clk 0:05:26]}  Nf6 {[%clk 0:06:18]} 24. h4 {[%clk 0:05:26]}  b5 {[%clk 0:06:18]} 25. axb5 {[%clk 0:05:26]}  cxb5 {[%clk 0:06:18]} 26. Nd2 {[%clk 0:05:26]}  h5 {[%clk 0:06:17]} 27. Ne4 {[%clk 0:03:16]}  Ng4+ {[%clk 0:06:17]} 28. Kg2 {[%clk 0:03:16]}  Bc6 {[%clk 0:06:17]} 29. Ng1 {[%clk 0:03:16]}  Qd7 {[%clk 0:06:17]} 30. Nh3 {[%clk 0:02:20]}  Bd5 {[%clk 0:04:49]} 31. Qb1 {[%clk 0:02:20]}  Bh6 {[%clk 0:04:49]} 32. Rde1 {[%clk 0:02:20]}  Rg8 {[%clk 0:04:49]} 33. Re2 {[%clk 0:02:20]}  Raf8 {[%clk 0:04:49]} 34. Qc2 {[%clk 0:02:20]}  Qg7 {[%clk 0:04:17]} 35. Kh1 {[%clk 0:01:39]}  Rc8 {[%clk 0:04:17]} 36. Qb2 {[%clk 0:01:39]}  Qd7 {[%clk 0:02:33]} 37. Bg2 {[%clk 0:01:05]}  Qc6 {[%clk 0:02:33]} 38. Bd2 {[%clk 0:01:05]}  Qb7 {[%clk 0:02:33]} 39. Ng1 {[%clk 0:00:40]}  Rcf8 {[%clk 0:02:18]} 40. Nf3 {[%clk 0:00:40]}  Qg7 {[%clk 0:02:18]} 41. Qc1 {[%clk 0:00:40]}  Rc8 {[%clk 0:02:18]} 42. Qe1 {[%clk 0:00:40]}  Qb7 {[%clk 0:02:18]} 43. Nd6 {[%clk 0:00:40]}  Qc6 {[%clk 0:02:18]} 44. Ne4 {[%clk 0:00:40]}  Rcf8 {[%clk 0:02:18]} 45. Rg1 {[%clk 0:00:40]}  Qa8 {[%clk 0:02:18]} 46. Qa1 {[%clk 0:00:40]}  Qb7 {[%clk 0:02:18]} 47. Qe1 {[%clk 0:00:40]}  Qe7 {[%clk 0:02:18]} 48. Qd1 {[%clk 0:00:40]}  Rg7 {[%clk 0:02:18]} 49. Rf1 {[%clk 0:00:40]}  Qb7 {[%clk 0:01:48]} 50. Ree1 {[%clk 0:00:21]}  Qf7 {[%clk 0:01:48]} 51. Nh2 {[%clk 0:00:21]}  Qg6 {[%clk 0:01:48]} 52. Nxg4 {[%clk 0:00:21]}  hxg4 {[%clk 0:01:48]} 53. f3 {[%clk 0:00:21]}  fxg3 {[%clk 0:01:48]} 54. fxg4 {[%clk 0:00:21]}  Bf4 {[%clk 0:01:48]} 55. Kg1 {[%clk 0:00:21]}  Qh6 {[%clk 0:01:48]} 56. Nxg3 {[%clk 0:00:21]}  Bxg2 {[%clk 0:01:48]} 57. Kxg2 {[%clk 0:00:21]}  Bxd2 {[%clk 0:01:19]} 58. Rxf8+ {[%clk 0:00:19]}  Nxf8 {[%clk 0:01:19]} 59. Rxe5 {[%clk 0:00:19]}  Ng6 {[%clk 0:01:19]} 60. Re8+ {[%clk 0:00:19]}  Kh7 {[%clk 0:01:19]} 61. h5 {[%clk 0:00:19]}  Nf4+ {[%clk 0:01:19]} 62. Kh1 {[%clk 0:00:19]}  Be3 {[%clk 0:01:19]} 63. Ne4 {[%clk 0:00:19]}  Nxh5 {[%clk 0:01:19]} 64. gxh5 {[%clk 0:00:19]}  Qf4 {[%clk 0:01:19]} 0-1


[Site "http://www.Chess.com"]